bitfinex-derivatives/quotes_SOLF0:USTF0_20250719
["timestamp","ask_amount","ask_price","bid_price","bid_amount"]
[1752886129369,8.7378,176.31,176.28,0.03989237]
[1752886129573,3.07,176.3,176.28,0.03989237]
[1752886130169,6.2829678,176.29,176.28,0.03989237]
[1752886130370,3.07,176.29,176.28,0.03989237]
[1752886130569,8.7385,176.29,176.28,0.03989237]
[1752886133868,5.6694,176.26,176.22,3.14]
[1752886134171,3.07,176.25,176.22,3.14]
[1752886134672,3.07,176.25,176.22,3.23]
[1752886135172,3.10586621,176.25,176.22,3.23]
[1752886135766,3.10586621,176.25,176.21,5.671]
[1752886136270,3.10586621,176.25,176.23,3.23]
[1752886136470,3.10586621,176.25,176.21,3.23]
[1752886136668,3.2129678,176.24,176.2,3.23]
[1752886136865,3.13,176.23,176.2,3.23]
[1752886137973,3.13,176.22,176.21,3.23]
[1752886141971,3.13,176.22,176.15,3.2129678]
[1752886141972,3.13,176.21,176.15,3.23]
[1752886142172,3.13,176.19,176.16,3.23]
[1752886142868,3.16615338,176.19,176.16,3.23]
[1752886143065,3.13,176.18,176.17,3.23]
[1752886145775,0.03615338,176.19,176.17,3.23]
[1752886146172,3.16615338,176.19,176.17,3.23]
[1752886146371,3.13,176.18,176.16,5.6726]
[1752886147079,3.13,176.18,176.17,3.23]
[1752886147380,0.03615338,176.19,176.17,3.23]
[1752886148577,3.13,176.22,176.17,3.23]
[1752886148874,3.13,176.24,176.17,3.23]
[1752886149074,3.13,176.2,176.17,3.23]
[1752886149370,3.13,176.2,176.16,3.26946377]
[1752886149673,3.13,176.18,176.14,109.09]
[1752886149979,3.13,176.18,176.16,0.03667605]
[1752886150179,8.8023,176.17,176.16,0.03667605]
[1752886150378,8.8023,176.17,176.12,3.23]
[1752886150379,6.3429678,176.17,176.12,3.23]
[1752886150571,3.13,176.16,176.09,105.98]
[1752886150773,5.673,176.15,176.1,5.6744]
[1752886150970,3.13,176.14,176.11,3.23]
[1752886151778,3.16720888,176.14,176.11,8.9042]
[1752886152076,3.16720888,176.14,176.12,3.23]
[1752886152277,3.13,176.13,176.12,3.23]
[1752886154880,0.03720888,176.14,176.12,3.23]
[1752886155083,0.03720888,176.14,176.13,3.23]
[1752886155275,3.16720888,176.14,176.13,3.23]
[1752886155478,3.16720888,176.14,176.13,8.9036]
[1752886156083,3.16720888,176.14,176.13,3.23]
[1752886156280,3.16720888,176.14,176.1,3.23]
[1752886156877,3.16720888,176.14,176.12,3.23]
[1752886157080,5.71050888,176.14,176.09,105.98]
[1752886157284,5.71050888,176.14,176.11,3.23]
[1752886157285,3.13,176.13,176.11,3.23]
[1752886157580,3.13,176.12,176.11,3.23]
[1752886158684,3.13,176.12,176.1,3.23]
[1752886159282,3.13,176.12,176.1,8.9045]
[1752886159486,3.13,176.12,176.08,3.23]
[1752886159777,3.13,176.12,175.98,11.3564]
[1752886159778,3.13,176.12,176.06,105.9]
[1752886159976,8.8042,176.12,176.08,5.6751]
[1752886160183,3.13,176.11,176.08,8.9051]
[1752886160782,3.13,176.12,176.07,3.23]
[1752886161082,0.04074383,176.11,176.07,3.23]
[1752886161290,0.04074383,176.11,176.1,8.9046]
[1752886161690,3.17074383,176.11,176.1,8.9046]
[1752886162191,3.17074383,176.11,176.09,5.6749]
[1752886162593,3.17074383,176.11,176.08,3.23]
[1752886163890,8.84504383,176.11,176.08,8.9052]
[1752886164092,3.13,176.1,176.08,8.9052]
[1752886164984,0.04074383,176.11,176.01,3.28]
[1752886165187,3.2129678,176.08,176.01,3.28]
[1752886165492,3.13,176.07,176.05,3.28]
[1752886165700,3.13,176.1,176.05,3.28]
[1752886165883,0.040286,176.08,176.05,3.28]
[1752886166291,3.13,176.07,176.06,3.28]
[1752886166489,3.13,176.07,176.0,3.2129678]
[1752886166787,6.3429678,176.07,175.98,3.2129678]
[1752886166988,3.13,176.04,176.0,3.28]
[1752886167584,3.17113563,176.04,176.0,3.28]
[1752886167995,8.84773563,176.04,176.0,8.9578]
[1752886168189,3.13,176.03,176.0,8.9578]
[1752886168693,3.13,176.03,176.01,5.6775]
[1752886168894,0.04113563,176.04,176.02,3.28]
[1752886169394,0.04113563,176.04,176.03,8.9568]
[1752886170197,3.17113563,176.04,175.98,3.28]
[1752886170589,3.13,176.02,175.94,3.2129678]
[1752886170793,3.13,176.02,175.99,5.6779]
[1752886170990,3.13,176.02,175.99,8.9579]
[1752886171597,3.16612962,176.02,175.99,8.9579]
[1752886171902,3.13,176.01,176.0,8.9578]
[1752886172088,3.13,176.01,176.0,3.28]
[1752886172291,3.13,176.01,175.9,3.2129678]
[1752886172590,3.13,176.0,175.99,3.28]
[1752886173692,0.03882258,176.01,175.99,3.28]
[1752886173900,3.16882258,176.01,176.0,3.28]
[1752886175094,0.03882258,176.01,176.0,3.28]
[1752886175387,0.03882258,176.01,176.0,8.9578]
[1752886176298,3.16882258,176.01,176.0,8.9578]
[1752886176498,3.16882258,176.01,176.0,3.28]
[1752886176891,3.16882258,176.01,175.98,3.28]
[1752886177499,3.16882258,176.01,175.98,8.9582]
[1752886178404,3.16882258,176.01,175.99,3.28]
[1752886178697,3.16882258,176.01,175.98,3.28]
[1752886178896,3.13,176.0,175.97,5.6787]
[1752886179101,3.13,176.0,175.97,8.9587]
[1752886179597,3.13,175.99,175.98,8.9584]
[1752886179799,3.16782934,176.0,175.99,3.28]
[1752886180402,0.03782934,176.0,175.99,8.9581]
[1752886180597,3.16782934,176.0,175.93,3.2129678]
[1752886180801,3.16782934,176.0,175.94,3.28]
[1752886181002,8.8901678,176.02,175.98,5.6784]
[1752886181298,3.17176127,175.99,175.98,8.9584]
[1752886181597,0.04176127,175.99,175.95,3.28]
[1752886181993,3.17176127,175.99,175.97,5.6785]
[1752886182303,3.17176127,175.99,175.94,3.28]
[1752886182506,3.17176127,175.99,175.98,5.6784]
[1752886182801,3.17176127,175.99,175.98,8.9584]
[1752886183903,0.04176127,175.99,175.98,8.9584]
[1752886184105,5.671,176.27,175.9,3.2129678]
[1752886184106,3.13,176.04,176.03,5.6766]
[1752886184305,3.13,176.04,176.03,8.9566]
[1752886184604,3.13,176.04,175.9,19.30539918]
[1752886184605,3.13,176.05,176.04,3.28]
[1752886184804,3.13,176.05,176.04,8.9562]
[1752886185304,3.13,176.04,176.03,8.9566]
[1752886185505,3.13,176.04,176.03,8.99527281]
[1752886185701,3.13,176.04,176.03,0.03867281]
[1752886186806,3.13,176.04,176.03,3.31867281]
[1752886187708,3.13,176.04,176.03,8.99547281]
[1752886188107,3.13,176.07,176.03,0.03867281]
[1752886188309,3.13,176.06,176.05,3.28]
[1752886189009,3.13,176.08,176.05,3.28]
[1752886189301,3.13,176.08,176.07,5.6755]
[1752886189498,3.2129678,176.11,176.07,3.28]
[1752886189705,3.13,176.09,176.08,3.28]
[1752886189901,6.3429678,176.11,176.09,3.28]
[1752886190101,3.13,176.1,176.09,3.28]
[1752886190902,3.13,176.1,176.09,8.9549]
[1752886191306,3.13,176.15,176.1,3.28]
[1752886191502,5.6733,176.14,176.11,3.28]
[1752886191706,3.13,176.13,176.1,5.6743]
[1752886191903,3.13,176.13,176.1,8.9543]
[1752886192103,3.13,176.13,176.11,0.03994716]
[1752886192306,6.3429678,176.13,176.11,0.03994716]
[1752886192507,3.13,176.12,176.11,0.03994716]
[1752886194517,3.13,176.12,176.11,3.15994716]
[1752886194918,3.13,176.12,176.11,8.83424716]
[1752886195614,3.2129678,176.14,176.11,8.83424716]
[1752886195615,3.17,176.14,176.13,8.7936]
[1752886195813,3.17,176.16,176.13,3.12]
[1752886196321,3.17,176.16,176.15,8.7927]
[1752886198619,3.17,176.18,176.17,8.7922]
[1752886198819,3.2129678,176.22,176.13,0.04352558]
[1752886199020,3.17,176.19,176.18,3.12]
[1752886199216,3.17,176.21,176.19,5.6716]
[1752886199420,3.17,176.2,176.19,8.7916]
[1752886199610,3.17,176.2,176.17,3.12]
[1752886199815,3.17,176.2,176.19,5.6717]
[1752886200011,3.17,176.2,176.19,8.7917]
[1752886200315,3.17,176.22,176.19,3.12]
[1752886200620,3.17,176.21,176.2,3.12]
[1752886201621,3.17,176.21,176.19,0.03756886]
[1752886201816,3.17,176.21,176.09,85.48828475]
[1752886201817,3.17,176.19,176.12,3.12]
[1752886202018,3.17,176.15,176.07,3.2129678]
[1752886202227,3.17,176.14,176.13,5.6735]
[1752886202417,3.17,176.14,176.13,8.7935]
[1752886205529,0.03587787,176.15,176.14,5.6733]
[1752886205831,3.20587787,176.15,176.14,8.7933]
[1752886206132,0.03587787,176.15,176.14,8.7933]
[1752886207026,3.17,176.19,176.16,5.6723]
[1752886207222,3.17,176.18,176.17,3.12]
[1752886208531,3.17,176.18,176.17,8.7923]
[1752886209535,3.17,176.18,176.17,3.12]
[1752886210130,3.17,176.19,176.18,8.792]
[1752886210845,3.17,176.21,176.2,3.12]
[1752886211238,3.17,176.23,176.16,3.12]
[1752886211432,3.17,176.23,176.2,5.6711]
[1752886211636,3.17,176.22,176.2,3.12]
[1752886211837,3.17,176.22,176.21,3.12]
[1752886212033,3.17,176.22,176.21,8.791]
[1752886212234,3.17,176.27,176.2,3.12]
[1752886212442,3.17,176.27,176.22,3.12]
[1752886212938,3.17,176.26,176.25,5.6695]
[1752886213129,3.17,176.26,176.25,8.7895]
[1752886213334,3.17,176.26,176.25,3.12]
[1752886213637,3.17,176.28,176.24,5.67]
[1752886213832,3.17,176.28,176.24,3.12]
[1752886214036,3.17,176.28,176.25,8.7895]
[1752886214233,381.56,176.33,176.23,0.0416851]
[1752886214234,3.17,176.27,176.26,3.12]
[1752886215541,3.17,176.27,176.26,8.7894]
[1752886216340,3.17,176.28,176.25,8.83311101]
[1752886216541,3.17,176.28,176.25,3.16341101]
[1752886216740,3.2129678,176.31,176.25,3.16341101]
[1752886216941,3.17,176.3,176.26,5.6691]
[1752886217147,3.17,176.3,176.26,8.7891]
[1752886217446,3.17,176.3,176.27,5.669]
[1752886218545,3.17,176.3,176.26,8.7893]
[1752886218745,3.17,176.29,176.26,8.7893]
[1752886220246,3.17,176.28,176.25,0.04341101]
[1752886220547,3.17,176.27,176.26,3.12]
[1752886221344,3.17,176.27,176.26,8.7894]
[1752886222451,3.17,176.27,176.26,3.12]
[1752886222751,3.17,176.27,176.25,0.04341101]
[1752886223251,6.3829678,176.27,176.25,0.04341101]
[1752886223448,3.2129678,176.27,176.25,0.04341101]
[1752886223650,3.17,176.26,176.2,3.12]
[1752886223951,3.17,176.25,176.2,3.12]
[1752886224548,3.17,176.23,176.2,8.7911]
[1752886225956,3.17,176.22,176.21,9.001]
[1752886226458,3.17,176.22,176.19,3.33]
[1752886226751,3.17,176.22,176.17,3.33]
[1752886226957,6.3829678,176.22,176.16,3.33]
[1752886227155,3.17,176.19,176.15,3.33]
[1752886227352,3.17,176.2,176.16,3.33]
[1752886227550,3.17,176.19,176.16,3.33]
[1752886227952,3.17,176.19,176.17,5.6721]
[1752886228153,3.17,176.18,176.17,9.0021]
[1752886229160,3.17,176.2,176.17,3.33]
[1752886229560,3.17,176.2,176.18,5.6717]
[1752886229760,3.17,176.2,176.19,3.33]
[1752886233063,0.0389814,176.21,176.2,3.33]
[1752886233564,3.17,176.25,176.2,3.33]
[1752886233757,3.2129678,176.28,176.2,3.33]
[1752886233758,0.03652931,176.22,176.2,3.33]
[1752886234166,3.17,176.25,176.21,3.33]
[1752886234559,0.03753369,176.23,176.21,3.33]
[1752886235162,0.03753369,176.23,176.22,9.0007]
[1752886239968,0.03753369,176.23,176.22,11.1687528]
[1752886242270,3.20753369,176.23,176.21,5.6709]
[1752886242470,3.20753369,176.23,176.21,3.33]
[1752886242666,3.17,176.21,176.2,3.33]
[1752886243370,0.03753369,176.23,176.18,3.33]
[1752886243371,5.3380528,176.22,176.18,3.33]
[1752886243673,3.17,176.21,176.17,3.33]
[1752886244074,3.17,176.19,176.16,3.33]
[1752886244475,3.17,176.19,176.13,2.1680528]
[1752886244769,3.17,176.19,176.13,3.33]
[1752886244770,3.17,176.17,176.13,3.33]
[1752886245975,3.17,176.17,176.14,5.6731]
[1752886246171,3.17,176.17,176.13,3.33]
[1752886246372,3.17,176.15,176.12,9.0039]
[1752886246572,3.17,176.14,176.13,3.33]
[1752886247570,3.17,176.14,176.13,9.0035]
[1752886248579,3.17,176.14,176.13,3.33]
[1752886249778,3.17,176.14,176.13,9.0036]
[1752886250074,0.0370221,176.15,176.14,5.6733]
[1752886250281,0.0370221,176.15,176.14,9.0033]
[1752886250877,0.0370221,176.15,176.14,11.1713528]
[1752886251881,0.0370221,176.15,176.14,9.0033]
[1752886252176,3.2070221,176.15,176.14,9.0033]
[1752886252879,0.0370221,176.15,176.14,9.0033]
[1752886253582,3.2070221,176.15,176.14,9.0033]
[1752886254183,0.0370221,176.15,176.14,9.0033]
[1752886255383,3.3270221,176.15,176.14,9.0033]
[1752886257089,3.3270221,176.15,176.12,8.8736]
[1752886258487,3.3270221,176.15,176.12,3.2]
[1752886258885,9.0001221,176.15,176.12,3.2]
[1752886259183,3.29,176.14,176.12,3.2]
[1752886259689,3.29,176.14,176.12,8.8739]
[1752886260086,3.29,176.13,176.12,8.8739]
[1752886262393,3.3270221,176.15,176.13,5.6735]
[1752886262690,0.0370221,176.15,176.13,3.2]
[1752886263188,0.0370221,176.15,176.14,11.0413528]
[1752886263390,3.29,176.19,176.14,5.3680528]
[1752886263592,3.29,176.21,176.18,2.1680528]
[1752886263887,2.1680528,176.23,176.18,2.1680528]
[1752886263888,5.6701,176.24,176.2,5.6713]
[1752886264081,3.29,176.22,176.21,3.2]
[1752886264890,3.29,176.22,176.17,3.2]
[1752886265290,2.1680528,176.21,176.16,5.6723]
[1752886265490,3.29,176.2,176.16,8.8723]
[1752886266084,8.9614,176.2,176.16,8.8723]
[1752886266390,3.29,176.19,176.17,3.2]
[1752886267591,3.29,176.18,176.17,8.8723]
[1752886267792,3.29,176.2,176.17,3.2]
[1752886268086,3.29,176.19,176.17,3.2]
[1752886268292,3.29,176.19,176.17,5.6722]
[1752886268490,3.29,176.19,176.18,3.2]
[1752886268992,5.671,176.21,176.18,5.672]
[1752886269291,3.29,176.2,176.19,3.2]
[1752886270293,3.29,176.19,176.18,3.2]
[1752886270696,3.29,176.19,176.16,3.23644875]
[1752886271195,5.6714,176.2,176.17,3.2]
[1752886271496,3.29,176.18,176.17,3.2]
[1752886272597,3.29,176.18,176.16,5.70894875]
[1752886272993,3.29,176.17,176.16,8.90894875]
[1752886273189,3.29,176.17,176.16,0.03644875]
[1752886273392,5.4580528,176.17,176.16,0.03644875]
[1752886273692,11.1303528,176.17,176.16,0.03644875]
[1752886274397,3.29,176.17,176.16,3.23644875]
[1752886274894,3.29,176.17,176.16,0.03644875]
[1752886275096,8.9623,176.17,176.16,0.03644875]
[1752886281901,3.29,176.17,176.16,3.23644875]
[1752886282105,3.29,176.18,176.16,3.23644875]
[1752886282304,3.29,176.19,176.16,3.23644875]
[1752886282706,3.29,176.17,176.16,0.03644875]
[1752886283205,8.9623,176.17,176.16,0.03644875]
[1752886283406,3.29,176.17,176.16,0.03644875]
[1752886284410,3.29,176.17,176.16,3.36644875]
[1752886284709,3.14,176.19,176.16,3.36644875]
[1752886285310,2.1680528,176.21,176.18,3.33]
[1752886285512,3.14,176.21,176.18,3.33]
[1752886285707,3.14,176.2,176.16,0.03644875]
[1752886286008,3.14,176.2,176.19,3.33]
[1752886286812,2.1680528,176.21,176.17,3.33]
[1752886287012,3.14,176.2,176.17,3.33]
[1752886287309,3.14,176.18,176.15,3.33]
[1752886287911,5.6725,176.17,176.15,3.33]
[1752886288111,3.14,176.16,176.14,3.33]
[1752886288307,3.14,176.15,176.14,3.33]
[1752886288508,5.6721,176.18,176.15,3.33]
[1752886288709,3.14,176.17,176.16,3.33]
[1752886288910,5.3080528,176.19,176.16,3.33]
[1752886289303,5.3080528,176.19,176.16,3.36612433]
[1752886289504,3.14,176.18,176.17,3.33]
[1752886290010,3.14,176.17,176.16,0.03612433]
[1752886290211,5.3080528,176.17,176.16,0.03612433]
[1752886291214,3.14,176.17,176.16,0.03612433]
[1752886291412,3.14,176.17,176.16,3.36612433]
[1752886295818,3.14,176.18,176.17,3.33]
[1752886299921,5.6723,176.17,176.16,0.03612433]
[1752886300122,8.8123,176.17,176.16,0.03612433]
[1752886300521,8.8123,176.17,176.16,3.36612433]
[1752886302123,8.8123,176.17,176.16,0.03612433]
[1752886302320,8.8123,176.17,176.16,3.36612433]
[1752886302920,8.8123,176.17,176.16,0.03612433]
[1752886306826,8.8123,176.17,176.16,3.36612433]
[1752886309126,8.8123,176.17,176.16,0.03612433]
[1752886310927,8.8123,176.17,176.16,3.36612433]
[1752886312120,8.8123,176.17,176.16,0.03612433]
[1752886313235,3.14,176.14,176.11,3.33]
[1752886313430,3.14,176.14,176.08,4.77601653]
[1752886313431,3.14,176.14,176.12,3.33]
[1752886314123,3.14,176.13,176.12,3.33]
[1752886314826,3.14,176.13,176.12,9.0039]
[1752886315933,0.03789063,176.14,176.13,8.7536]
[1752886319034,0.03789063,176.14,176.13,3.08]
[1752886319431,3.24789063,176.14,176.13,3.08]
[1752886320633,0.03789063,176.14,176.12,5.6738]
[1752886320834,3.21,176.13,176.12,5.6738]
[1752886321024,0.03789063,176.14,176.11,5.6742]
[1752886321226,3.21,176.13,176.08,3.08]
[1752886321628,5.3780528,176.13,176.08,3.08]
[1752886321825,0.03789063,176.14,176.1,2.17103397]
[1752886322035,0.03789063,176.14,176.11,3.08]
[1752886322535,0.03789063,176.14,176.1,2.17103397]
[1752886322536,3.24789063,176.14,176.13,3.08]
[1752886324431,0.03789063,176.14,176.13,8.7536]
[1752886325035,3.21,176.19,176.17,3.08]
[1752886325940,6.25517422,176.25,176.17,3.08]
[1752886326138,3.21,176.21,176.17,3.08]
[1752886326638,3.21,176.21,176.17,3.11594197]
[1752886326839,8.8813,176.21,176.17,8.78804197]
[1752886327338,3.21,176.2,176.18,3.08]
[1752886327641,3.21,176.19,176.18,3.08]
[1752886328242,3.21,176.2,176.19,3.08]
[1752886328443,7.84167604,176.22,176.19,3.08]
[1752886328644,3.21,176.21,176.19,3.08]
[1752886329047,3.21,176.21,176.18,5.672]
[1752886329245,3.21,176.21,176.2,3.08]
[1752886331248,3.21,176.2,176.17,0.03594197]
[1752886331738,5.6716,176.2,176.17,3.11594197]
[1752886331939,3.21,176.18,176.17,3.11594197]
[1752886332743,5.6716,176.2,176.17,3.11594197]
[1752886332940,5.6716,176.2,176.18,3.08]
[1752886333649,3.21,176.19,176.18,3.08]
[1752886334248,3.21,176.19,176.17,0.03594197]
[1752886334249,3.21,176.19,176.17,3.11594197]
[1752886334745,3.21,176.18,176.17,0.03594197]
[1752886335552,3.21,176.18,176.17,3.11594197]
[1752886336257,8.882,176.18,176.17,0.03594197]
[1752886337745,3.21,176.18,176.17,3.11594197]
[1752886338849,8.8816,176.2,176.17,3.11594197]
[1752886339055,3.21,176.19,176.17,3.11594197]
[1752886339653,5.6716,176.2,176.18,3.08]
[1752886339654,3.21,176.2,176.18,3.08]
[1752886339951,5.6711,176.21,176.17,5.70824197]
[1752886340147,3.21,176.19,176.17,5.70824197]
[1752886340652,3.21,176.19,176.18,3.08]
[1752886341458,3.21,176.21,176.18,3.08]
[1752886341650,132.32029886,176.26,176.19,3.08]
[1752886341651,2.17087604,176.25,176.19,3.08]
[1752886341955,3.21,176.22,176.21,3.08]
[1752886346056,3.21,176.22,176.2,0.03580133]
[1752886346258,3.21,176.22,176.2,3.20580133]
[1752886346855,5.6707,176.22,176.2,3.20580133]
[1752886347055,3.19,176.21,176.2,3.20580133]
[1752886348752,8.861,176.21,176.2,0.03580133]
[1752886350454,3.19,176.21,176.2,0.03580133]
[1752886350758,3.19,176.21,176.2,3.20580133]
[1752886353465,8.861,176.21,176.2,3.20580133]
[1752886353660,5.36087604,176.21,176.15,3.17]
[1752886353866,3.19,176.2,176.15,3.17]
[1752886354057,5.6723,176.17,176.15,3.17]
[1752886354264,5.6723,176.17,176.13,2.17087604]
[1752886354265,3.19,176.16,176.13,5.34087604]
[1752886354861,8.8626,176.16,176.13,5.34087604]
[1752886355065,3.19,176.15,176.13,5.34087604]
[1752886355360,3.19,176.14,176.13,2.17087604]
[1752886355562,3.19,176.15,176.14,3.17]
[1752886355767,0.03812813,176.16,176.14,3.17]
[1752886355969,3.19,176.15,176.14,3.17]
[1752886361269,3.22812813,176.16,176.15,3.17]
[1752886362067,0.03812813,176.16,176.15,8.843]
[1752886362274,2.17087604,176.22,176.16,3.17]
[1752886362470,3.19,176.2,176.16,3.17]
[1752886362672,3.19,176.2,176.18,5.6719]
[1752886362872,3.19,176.2,176.19,3.17]
[1752886363674,3.19,176.22,176.2,3.17]
[1752886363866,3.19,176.24,176.2,3.17]
[1752886364070,8.8598,176.25,176.23,3.17]
[1752886364372,3.19,176.24,176.22,5.6707]
[1752886364670,3.19,176.24,176.23,3.17]
[1752886366364,3.19,176.24,176.22,3.20688847]
[1752886366581,5.6698,176.25,176.22,3.20688847]
[1752886366777,5.6698,176.25,176.22,0.03688847]
[1752886366987,3.19,176.23,176.22,0.03688847]
[1752886367480,3.19,176.23,176.22,3.20688847]
[1752886367872,3.19,176.25,176.22,3.20688847]
[1752886368075,3.19,176.24,176.22,3.20688847]
[1752886368981,3.19,176.25,176.22,3.20688847]
[1752886369184,123.8942486,176.26,176.22,3.20688847]
[1752886369485,127.0842486,176.26,176.22,3.20688847]
[1752886369683,3.19,176.25,176.22,3.20688847]
[1752886369884,3.19,176.24,176.22,3.20688847]
[1752886371386,3.19,176.24,176.23,3.17]
[1752886371684,127.0842486,176.26,176.23,3.17]
[1752886372085,132.7539486,176.26,176.23,3.17]
[1752886372878,5.6698,176.25,176.23,3.17]
[1752886374684,129.5637486,176.26,176.23,3.17]
[1752886374882,127.1342486,176.26,176.23,8.8402]
[1752886375385,127.1342486,176.26,176.24,3.1]
[1752886375780,127.1342486,176.26,176.24,8.77]
[1752886375982,127.1342486,176.26,176.25,3.1]
[1752886376181,3.24,176.28,176.25,3.1]
[1752886376790,3.24,176.3,176.27,3.1]
[1752886376994,2.17087604,176.36,176.29,3.1]
[1752886377186,3.24,176.31,176.29,3.1]
[1752886377386,3.24,176.31,176.3,3.1]
[1752886379090,5.6677,176.32,176.3,3.1]
[1752886379290,3.24,176.32,176.3,3.1]
[1752886379594,3.24,176.32,176.29,5.6684]
[1752886379782,3.24,176.32,176.31,3.1]
[1752886380387,3.24,176.35,176.29,3.1]
[1752886380892,3.24,176.33,176.28,0.03629621]
[1752886381087,2.17087604,176.29,176.28,0.03629621]
[1752886381288,5.6697,176.26,176.23,3.1]
[1752886381484,3.24,176.25,176.23,3.1]
[1752886382091,3.24,176.26,176.24,3.1]
[1752886382288,8.9089,176.28,176.22,2.17087604]
[1752886382591,3.24,176.29,176.26,5.6694]
[1752886382791,3.24,176.29,176.27,3.1]
[1752886383293,3.24,176.29,176.28,3.1]
[1752886383498,3.24,176.29,176.26,3.1]
[1752886383897,3.24,176.28,176.27,3.1]
[1752886385398,3.24,176.29,176.27,3.1]
[1752886386195,3.24,176.29,176.26,5.6694]
[1752886386396,3.24,176.29,176.28,3.1]
[1752886388202,3.24,176.31,176.28,3.1]
[1752886388500,3.24,176.3,176.29,3.1]
[1752886390000,3.24,176.3,176.26,3.1]
[1752886390299,2.17087604,176.32,176.26,3.1]
[1752886390501,3.24,176.31,176.26,3.1]
[1752886391001,7.83847604,176.32,176.28,5.6686]
[1752886391202,3.27619953,176.3,176.29,3.1]
[1752886391601,3.27619953,176.3,176.27,5.669]
[1752886391804,3.27619953,176.3,176.28,3.1]
[1752886392501,3.27619953,176.3,176.27,5.669]
[1752886392706,3.27619953,176.3,176.27,8.769]
[1752886393008,3.24,176.29,176.28,8.7687]
[1752886394696,3.24,176.29,176.27,8.769]
[1752886394898,3.24,176.29,176.26,3.1]
[1752886395108,3.24,176.28,176.27,5.6691]
[1752886395305,3.24,176.28,176.27,8.7691]
[1752886396203,3.24,176.29,176.28,5.6687]
[1752886396808,3.24,176.29,176.28,8.7687]
[1752886398012,3.24,176.29,176.28,3.1]
[1752886399900,0.03619953,176.3,176.28,3.1]
[1752886400510,3.27619953,176.3,176.28,3.1]
[1752886401206,3.27619953,176.3,176.29,5.6685]
[1752886401409,3.27619953,176.3,176.29,8.7685]
[1752886404317,0.03619953,176.3,176.29,8.7685]
[1752886404807,0.03619953,176.3,176.29,10.93937604]
[1752886405508,392.6069,176.45,176.34,8.7268]
[1752886405703,2.17087604,176.38,176.34,5.6668]
[1752886405908,3.25,176.37,176.35,3.06]
[1752886406109,3.25,176.37,176.35,8.7265]
[1752886406310,3.25,176.36,176.35,5.6665]
[1752886406514,3.25,176.38,176.34,2.17087604]
[1752886406711,3.25,176.38,176.34,2.20800463]
[1752886406911,3.25,176.38,176.35,3.06]
[1752886407214,3.25,176.37,176.34,3.09712859]
[1752886407610,3.25,176.36,176.33,2.17087604]
[1752886407815,3.25,176.37,176.33,2.17087604]
[1752886408312,3.25,176.37,176.34,3.06]
[1752886408507,5.6653,176.39,176.34,3.06]
[1752886408716,3.25,176.38,176.34,3.06]
[1752886409105,5.6653,176.39,176.35,5.6665]
[1752886409308,3.25,176.37,176.35,5.6665]
[1752886409704,3.25,176.37,176.36,3.06]
[1752886411116,3.25,176.37,176.36,8.7262]